Cogmind - Beta 12 @@@ ROGUE MODE // 2023.09.14 @ 13:50:44 Player: Trantor Result: Destroyed by as-87705 with Assembled Blade Performance ------------- Evolutions (0) 0 Regions Visited (3) 600 Robots Destroyed (19) 95 Value Destroyed (434) 434 Prototype IDs (0) 0 Alien Tech Used (0) 0 Bonus (-31) -31 TOTAL SCORE: 1098 Bonus ------- Friendly Fire -31 Cogmind --------- Core Integrity 0/250 Matter 300/300 Energy 100/100 System Corruption 0% Temperature Cool (0) Movement Core (400) Ox7 Location -10/Exiles Parts ------- > --- POWER (1) -------- (None) > --- PROPULSION (2) --- (None) > --- UTILITY (2) ------ Large Storage Unit Hacking Suite > --- WEAPON (2) ------- Minigun > --- INVENTORY (15) --- Ion Engine Improved Heat Sink Small Storage Unit Huge Storage Unit Medium Matter Pod (69) Targeting Computer ECM Suite EM Pulse Gun EM Pulse Cannon Beam Cannon Beam Cannon Assault Rifle Assault Rifle Grenade Launcher Mining Laser Peak State ------------ > --- POWER ------------ Ion Engine > --- PROPULSION ------- Compact Wheel Compact Wheel > --- UTILITY ---------- Large Storage Unit Hacking Suite > --- WEAPON ----------- Minigun Light Cannon > --- INVENTORY -------- Ion Engine Compact Wheel Small Storage Unit Huge Storage Unit Medium Matter Pod Targeting Computer ECM Suite EM Pulse Gun EM Pulse Cannon Beam Cannon Beam Cannon Assault Rifle Assault Rifle Grenade Launcher Mining Laser [Rating: 12] Favorites ----------- Power Ion Engine Engine Ion Engine Propulsion Compact Wheel Treads Light Treads Leg Aluminum Leg Wheel Compact Wheel Utility Large Storage Unit Device ECM Suite Storage Large Storage Unit Hackware Hacking Suite Weapon Light Cannon Energy Gun Medium Laser Ballistic Gun Assault Rifle Ballistic Cannon Light Cannon Special Weapon Mining Laser Build | -11 -10 -10 -10 ------- Run | Jun Mat Min Exi Slots Evolved . | . . . . Power . | . . . . Propulsion . | . . . . Utility . | . . . . Weapon . | . . . . Parts Attached 20 | . 16 4 . Power 3 | . 3 . . Engine 3 | . 3 . . Core . | . . . . Reactor . | . . . . Propulsion 6 | . 5 1 . Treads 2 | . 2 . . Leg . | . . . . Wheel 4 | . 3 1 . Hover . | . . . . Flight . | . . . . Utility 4 | . 4 . . Device 1 | . 1 . . Storage 2 | . 2 . . Processor . | . . . . Hackware 1 | . 1 . . Protection . | . . . . Artifact . | . . . . Weapon 7 | . 4 3 . Energy Gun . | . . . . Energy Cannon . | . . . . Ballistic Gun 3 | . 2 1 . Ballistic Cannon 3 | . 2 1 . Launcher . | . . . . Special Weapon 1 | . . 1 . Impact Weapon . | . . . . Slashing Weapon . | . . . . Piercing Weapon . | . . . . Special Melee Weapon . | . . . . Unidentified Prototypes . | . . . . Parts Lost 5 | . . 1 4 Power 1 | . . . 1 Propulsion 3 | . . 1 2 Utility . | . . . . Weapon 1 | . . . 1 Highest Loss Streak 4 | . . 1 4 To Critical Strikes . | . . . . Average Slot Usage (%) 94 | . 90 100 98 Engine 14 | . 14 14 14 Treads 2 | . 4 . . Wheel 24 | . 21 28 27 Storage 14 | . 14 14 14 Hackware 7 | . 3 14 14 Ballistic Gun 14 | . 14 14 14 Ballistic Cannon 12 | . 12 12 13 Naked Turns . | . . . . Heaviest Build 90 | 13 90 31 31 Greatest Support 40 | 20 40 32 32 Greatest Overweight (x) 2 | . 2 . 1 Average Overweight (x) . | . . . . Largest Inventory Capacity 25 | . 25 15 15 Average Capacity 18 | . 20 15 15 Most Carried 15 | . 15 15 15 Average Carried 12 | . 10 14 15 Final Capacity 15 | 8 15 15 15 Final Carried 15 | 6 15 15 15 Class Distribution -------------------- 100% | Mutant Dominant Class ---------------- Mutant | -10/Materials Mutant | -10/Mines Mutant | -10/Exiles Resources | -11 -10 -10 -10 ----------- Run | Jun Mat Min Exi Matter Collected 791 | 200 407 184 . Remotely . | . . . . Salvage Created 536 | . 382 154 . Parts 23 | . 16 7 . Haulers Intercepted 2 | . 2 . . Recyclers Shooed 1 | . 1 . . Parts Field Recycled . | . . . . Retrieved Matter . | . . . . Parts Self-Destructed . | . . . . Prevented . | . . . . Kills | -11 -10 -10 -10 ------- Run | Jun Mat Min Exi Combat Hostiles Destroyed 14 | . 10 4 . Guns 4 | . 2 2 . Cannons 10 | . 8 2 . Classes Destroyed 5 | . 5 . . Hauler 2 | . 2 . . Recycler 1 | . 1 . . Operator 2 | . 2 . . Swarmer 5 | . 5 . . Grunt 9 | . 5 4 . Best Kill Streak 4 | . 4 2 . Combat Bots Only 2 | . 2 2 . Max Kills in Single Turn 1 | . 1 1 . Gunslinging . | . . . . Exploded . | . . . . Melee . | . . . . Uniques/NPCs Destroyed . | . . . . Combat | -11 -10 -10 -10 -------- Run | Jun Mat Min Exi Damage Taken 805 | . 327 60 418 Core 282 | . 108 17 157 Absorbed by Shields . | . . . . Core Remaining (%) 100 | 100 . . . Volleys Fired 66 | . 52 13 1 Largest 2 | . 2 2 2 Hottest 100 | . 55 100 60 Shots Fired 123 | . 103 18 2 Gun 58 | . 52 5 1 Cannon 61 | . 51 9 1 Launcher . | . . . . Special 4 | . . 4 . Kinetic 119 | . 103 14 2 Thermal 4 | . . 4 . Explosive . | . . . . Electromagnetic . | . . . . Robot Hit Streak 9 | . 6 7 9 Robot Miss Streak 6 | . 6 1 . Penetration Max . | . . . . Secondary Targets . | . . . . Shots Hit Robots 65 | . 56 7 2 Core Hits 29 | . 23 5 1 Critical Kills . | . . . . Critical Parts Destroyed . | . . . . Critical Strikes 1 | . 1 . . Blast 1 | . 1 . . Melee Attacks . | . . . . Impact . | . . . . Slashing . | . . . . Piercing . | . . . . Sneak Attacks . | . . . . Combat Hostiles . | . . . . Follow-up Attacks . | . . . . Damage Inflicted 961 | . 812 118 31 Guns 297 | . 248 33 16 Cannons 664 | . 564 85 15 Explosions . | . . . . Melee . | . . . . Ramming . | . . . . Kinetic 961 | . 812 118 31 Thermal . | . . . . Explosive . | . . . . Electromagnetic . | . . . . Impact . | . . . . Slashing . | . . . . Piercing . | . . . . Highest Corruption . | . . . . Average Corruption . | . . . . Corruption Purged . | . . . . Corruption Blocked . | . . . . Overload Shots . | . . . . Overflow Damage . | . . . . Projectiles . | . . . . Explosions . | . . . . Melee . | . . . . Knockbacks 5 | . 4 . 1 Impact . | . . . . Kinetic 4 | . 3 . 1 Secondary 1 | . 1 . . Self-Inflicted Damage . | . . . . Shots . | . . . . Rammed . | . . . . Targets Rammed . | . . . . Kicked . | . . . . Crushed . | . . . . Highest Temperature 54 | . 54 40 20 Average Temperature 17 | . 18 14 15 Received Heat Transfer 190 | . 117 33 40 Siege Activations . | . . . . Robots Corrupted . | . . . . Combat Hostiles . | . . . . Parts Fried . | . . . . Impact Corruptions . | . . . . Robots Melted . | . . . . Combat Hostiles . | . . . . Parts Melted . | . . . . Heat Transferred . | . . . . Parts Sabotaged . | . . . . Parts Stolen . | . . . . Parts Stripped . | . . . . Power Chain Reactions . | . . . . Missiles Intercepted . | . . . . Alert | -11 -10 -10 -10 ------- Run | Jun Mat Min Exi Peak Influence 212 | . 212 51 . Initial 19 | . . 19 . Average 52 | . 66 28 . Maximum Alert Level 1 | . 1 . . Low Security (%) 91 | . 86 100 . Level 1 8 | . 13 . . Level 2 . | . . . . Level 3 . | . . . . Level 4 . | . . . . Level 5 . | . . . . High Security . | . . . . Max Security . | . . . . Squads Dispatched 2 | . 1 1 . Investigation 1 | . . 1 . Extermination . | . . . . Reinforcement 1 | . 1 . . Assault . | . . . . Garrison . | . . . . Intercept . | . . . . Searches Triggered . | . . . . Construction Impeded . | . . . . Haulers Reinforced . | . . . . Active Scanning Responses . | . . . . Cargo Convoy Interrupts . | . . . . Stealth | -11 -10 -10 -10 --------- Run | Jun Mat Min Exi Distress Signals 4 | . 3 1 . Communications Jammed . | . . . . Distress Signals . | . . . . Times Spotted 37 | . 24 5 8 Peak Tracking Total 9 | . 4 2 9 Tactical Retreats 3 | . 2 1 . Traps | -11 -10 -10 -10 ------- Run | Jun Mat Min Exi Traps Triggered 2 | . 2 . . Indirectly . | . . . . Trap Hack Attempts . | . . . . Triggered . | . . . . Disarmed 2 | . 2 . . Reprogrammed . | . . . . Reused . | . . . . Traps Extracted . | . . . . Installed . | . . . . Triggered . | . . . . Machines | -11 -10 -10 -10 ---------- Run | Jun Mat Min Exi Machines Disabled 2 | . 1 . 1 Max in Single Turn 1 | . 1 . 1 Machines Repaired . | . . . . Machines Sabotaged . | . . . . Overloaded Fab Kills . | . . . . Hacking | -11 -10 -10 -10 --------- Run | Jun Mat Min Exi Machines Accessed 9 | . 7 2 . Terminals 8 | . 7 1 . Fabricators . | . . . . Repair Stations . | . . . . Recycling Units . | . . . . Scanalyzers . | . . . . Garrison Access . | . . . . Total Hacks 25 | . 18 7 . Successful 9 | . 5 4 . Failed 15 | . 12 3 . Catastrophic 4 | . 4 . . Database Lockouts 1 | . 1 . . Manual 18 | . 9 9 . Terminals 24 | . 18 6 . Fabricators . | . . . . Repair Stations . | . . . . Recycling Units . | . . . . Scanalyzers . | . . . . Garrison Access . | . . . . Terminal Hacks 9 | . 5 4 . Robot Analysis 3 | . 1 2 . Open Door 1 | . . 1 . Branch Access Points 1 | . 1 . . Unreport Threat 3 | . 2 1 . Disarm Traps 1 | . 1 . . Fabricator Hacks . | . . . . Repair Station Hacks . | . . . . Recycling Unit Hacks . | . . . . Scanalyzer . | . . . . Garrison Access Hacks . | . . . . Unauthorized Hacks . | . . . . Terminals . | . . . . Fabricators . | . . . . Repair Stations . | . . . . Recycling Units . | . . . . Scanalyzers . | . . . . Garrison Access . | . . . . Data Cores Recovered 1 | . 1 . . Used 1 | . 1 . . Hacking Detections 8 | . 7 1 . Full Trace Events . | . . . . Feedback Events . | . . . . Feedback Blocked . | . . . . Robot Schematics Acquired . | . . . . Robots Built . | . . . . Authchips . | . . . . Time . | . . . . Total Robot Build Rating . | . . . . Part Schematics Acquired . | . . . . Parts Built . | . . . . Authchips . | . . . . Time . | . . . . Total Part Build Rating . | . . . . Parts Repaired . | . . . . Time . | . . . . Parts Recycled . | . . . . Recycled Matter . | . . . . Retrieved Matter . | . . . . Retrieved Components . | . . . . Parts Scanalyzed . | . . . . Part Schematics Acquired . | . . . . Parts Damaged . | . . . . Bothacking | -11 -10 -10 -10 ------------ Run | Jun Mat Min Exi Used RIF Installer . | . . . . Robots Hacked . | . . . . Non-combat . | . . . . Combat . | . . . . Robot Hacks Applied . | . . . . Relay Couplers Released . | . . . . Fabnet Peak Effective % . | . . . . Robots Rewired . | . . . . Allies Hacked . | . . . . Hacks Repelled . | . . . . Allies | -11 -10 -10 -10 -------- Run | Jun Mat Min Exi Total Allies 1 | . . 1 . Largest Group 1 | . . 1 . Highest-Rated Group 31 | . . 31 . Highest-Rated Ally 31 | . . 31 . Total Orders . | . . . . Ally Attacks 1 | . . 1 . Total Damage . | . . . . Kills . | . . . . Allies Corrupted . | . . . . Allies Melted . | . . . . Intel | -11 -10 -10 -10 ------- Run | Jun Mat Min Exi Robot Analysis Total 3 | . 1 2 . Derelict Logs Recovered 2 | . . 2 . Drone Launches . | . . . . Drone Recoveries . | . . . . Exploration | -11 -10 -10 -10 ------------- Run | Jun Mat Min Exi Turns Passed 2322 | . 1358 819 145 Spaces Moved 1740 | 1 882 717 140 Core . | . . . . Treads 71 | . 71 . . Legs 61 | 1 60 . . Wheels 1608 | . 751 717 140 Hover . | . . . . Flight . | . . . . Fastest Speed 100 | 120 100 100 100 Average Speed 114 | 120 129 100 100 Slowest Speed 320 | 120 320 100 115 Overloaded Moves . | . . . . Propulsion Burnouts . | . . . . Robots Hopped . | . . . . Cave-ins Triggered . | . . . . Exploration Rate (%) 57 | 2 95 100 33 Regions Visited 3 Branch Regions 2 Pre-discovered Areas 1 | . . 1 . Known Exits Taken 1 | . 1 . . Unknown Exits Taken 2 | 1 . 1 . Scrap Searched 1 | . . 1 . Spaces Dug . | . . . . Terrain Destroyed . | . . . . Melee . | . . . . Projectile . | . . . . AOE . | . . . . Terrain Rammed . | . . . . Walls Destroyed . | . . . . Machines Disabled . | . . . . Actions | -11 -10 -10 -10 --------- Run | Jun Mat Min Exi Total 1940 | . 1004 794 142 Wait 85 | . 30 55 . Move 1737 | . 881 716 140 Hop . | . . . . Pick Up 14 | . 11 3 . Fast Attach 7 | . 7 . . Attach 1 | . . 1 . Detach 4 | . 4 . . Swap 12 | . 9 3 . Drop 13 | . 10 3 . Fire 66 | . 52 13 1 Melee . | . . . . Ram . | . . . . Kick . | . . . . Crush . | . . . . Escape Stasis . | . . . . Rewire 1 | . . . 1 Trap . | . . . . Miscellaneous . | . . . . Route ------- -11/Junkyard -10/Materials (discovered 4 exits: [*Mat x3] / *Min) -10/Mines (discovered 3 exits: [*Mat x2] / [*Exi]) -10/Exiles (discovered 1 exit: [*Min]) History --------- Turn | Location | Event 1 | -11/Junkyard | Discovered new exit (range 0) 1 | -11/Junkyard | Entered Materials 244 | -10/Materials | Discovered new exit (range 9) 305 | -10/Materials | Build established: Mutant 369 | -10/Materials | Discovered new exit (range 16) 387 | -10/Materials | Identified exit to Mines 455 | -10/Materials | Discovered new exit (range 14) 738 | -10/Materials | Discovered new exit (range 5) 823 | -10/Materials | Central database locked down 1359 | -10/Materials | Entered Mines 1362 | -10/Mines | Received a Mining Laser from a helpful Derelict 1394 | -10/Mines | Learned 4 Materials zone layouts 1438 | -10/Mines | Discovered new exit (range 10) 1473 | -10/Mines | Met a Derelict shopkeep closing up shop 1500 | -10/Mines | Learned location of Zion (-7) 1821 | -10/Mines | Excavation squad dispatched 1821 | -10/Mines | A large section of the Mines collapsed 2013 | -10/Mines | Discovered new exit (range 8) 2069 | -10/Mines | Deemed a non-threat by the Exiles lab entrance 2070 | -10/Mines | Discovered new exit (range 5) 2178 | -10/Mines | Entered Exiles 2193 | -10/Exiles | Discovered new exit (range 15) 2227 | -10/Exiles | Met 8R-AWN 2244 | -10/Exiles | Met EX-HEX 2282 | -10/Exiles | Met EX-BIN 2303 | -10/Exiles | Attacked by the Exiles 2310 | -10/Exiles | Core integrity fell below 50% 2318 | -10/Exiles | Core integrity fell below 20% 2323 | -10/Exiles | Destroyed by as-87705 with Assembled Blade Last Messages --------------- More specifically, we extract data from their central systems and transmit it to you or anyone else we have a bead on, and you process that locally together with our algorithms to determine their precise locations! It's pretty reliable so far, and once we've tweaked it to perfection it'll be much safer for us to move around anywhere in the complex. Want in on the action? Just step right into the FarCom Aligner and I'll do the rest. Now, I'll admit there could be side effects, but if you're willing to participate in the trials you can have one of our prototypes. How's that for a sweet deal? 02303_ EXILES: Hostile robot within lab perimeter. Defensive protocols time, folks! 02306_ Attempting to rewire as-90890. 02306_ as-90890 cannot be rewired. 02314_ Penetrated by HV Slug. 02314_ Com. Wheel destroyed. 02316_ Lgt. Cannon destroyed. 02317_ Penetrated by HV Slug. 02320_ Ion Engine destroyed. 02323_ Com. Wheel destroyed. Map ----- +----------------------------------------------------+ | ?????????????????????????????????????????????????? | | ?????????????????????????????????????????????????? | | ?????????????????? ??????????????????????????? | | ?????????????????# #?????????????????????????? | | ?????????????????# ###""?????????????????????? | | ?????????????????" "???????????????????? | | ?????????????????" "??????????????????? | | ?????????????????" "??????????????????? | | ????????????????#" ""?????????????????? | | ????????????????#" ""?????????????????? | | ?????????????????" "??????????????????? | | ?????????????????# "??????????????????? | | ?????????????????# ????????????????????? | | ?????????????????#" "X"????????????????????? | | ?????????????????#" "??????????????????????? | | ?????????????????#" "????????????????????????? | | ????????????????##" #?????????????????????????? | | ???????????????##"" #?????????????????????????? | | ??????????????##"" #?????????????????????????? | | ?????????????""""" ##????????????????????????? | | ????????????" " "" ##???###########?????????? | | ???????????"" " #####"""""""""##????????? | | ?????????? " " """ """"##???????? | | ????????? "" " #???????? | | ????????? " " "#???????? | | ????????? @aa " "#???????? | | ????????? aa a " "##??????? | | ????????? ""###????? | | ?????????? """""" " "#????? | | ?????????? ######""" "#????# | | ???????????""#?????#####""" ##???# | | ???????????????????????##""" ##?## | | ????????????????????????#"""" ### | | ???????????????????????##"" | | ???????????????????????#"""" | | ?????????????????????""" | | ???????????????????""" #" | | ?????????????????? ### | | ????????????????? ##?? | | ????????????????? " ##??? | | ?????????????????? "" """ ""#???? | | ??????????????????# ##""" " " ""#" "##???? | | ??????????????????# ??#####""" """##"""""""##????? | | ??????????????????????????###""""###########?????? | | ????????????????????????????######???????????????? | | ?????????????????????????????????????????????????? | | ?????????????????????????????????????????????????? | | ?????????????????????????????????????????????????? | | ?????????????????????????????????????????????????? | | ?????????????????????????????????????????????????? | +----------------------------------------------------+ Best States ------------- Heat Dissipation 25 Energy Generation 10 Energy Capacity 250 Matter Stores 300 Matter Capacity 300 Sight Range 16 Terrain Scan Density 10 ECM Strength 1 Evasion (%) 55 Recoil Reduction 2 Offensive Hacking 10 Item Schematics ----------------- None Robot Schematics ------------------ None Fabricated ------------ Nothing Alien Tech Used ----------------- None Achievements -------------- None Challenges ------------ None Game ------ Seed PortableLobotomyHammer Manual? 0 Play Time 00:19:35 Cumulative 205.0 hours Start 2023.09.14 @ 13:30:42 End 2023.09.14 @ 13:50:44 Sessions 1 Manual Loads 0 Difficulty Rogue Special Mode None Game No. 113 Rogue 69 Adventurer 44 Explorer 0 Win Type - Total 1 Types 1/0/0/0/0/0/0/0/0 Lore% 57 Gallery% 57 Achievement% 55 Wizard Run 0 Options --------- ASCII 0 Keyboard 1 Movement Vi Keybinds 1 Fullscreen 2 Font 18/X11Bold Map View 76x50 Tactical HUD 1 Map Filters NONE Filters NONE Steam 1 RUN: 67e37e27-4d9f-4bb7-87e7-34b3af7513e2